fUST/lending_fUST_20250720
["ID","MTS","AMOUNT","RATE_DAILY","PERIOD"]
[373401343,1752987041420,-472.75251347,0.0001787,2]
[373401345,1752987041429,-460.0,0.0001787,2]
[373401347,1752987041438,-460.0,0.0001787,2]
[373401349,1752987041447,-460.0,0.0001787,2]
[373401351,1752987041456,-460.0,0.0001787,2]
[373401353,1752987041466,-460.0,0.0001787,2]
[373401355,1752987041475,-460.0,0.0001787,2]
[373401357,1752987041484,-460.0,0.0001787,2]
[373401359,1752987041493,-460.0,0.0001787,2]
[373401361,1752987041503,-460.0,0.0001787,2]
[373401363,1752987041513,-466.47298172,0.0001787,2]
[373401365,1752987041522,-460.0,0.0001787,2]
[373401367,1752987041531,-460.0,0.0001787,2]
[373401369,1752987041540,-202.67426909,0.0001787,2]
[373401371,1752987041550,-282.19192418,0.0001787,2]
[373401373,1752987041559,-460.0,0.0001787,2]
[373401374,1752987041569,-460.0,0.0001787,2]
[373401376,1752987041578,-500.0,0.0001787,2]
[373401378,1752987041588,-460.0,0.0001787,2]
[373401380,1752987041598,-460.0,0.0001787,2]
[373401382,1752987041607,-460.0,0.0001787,2]
[373401384,1752987041617,-460.0,0.0001787,2]
[373401386,1752987041626,-460.0,0.0001787,2]
[373401388,1752987041636,-460.0,0.0001787,2]
[373401390,1752987041645,-461.36727751,0.0001787,2]
[373401392,1752987041659,-460.0,0.0001787,2]
[373401394,1752987041669,-460.0,0.0001787,2]
[373401396,1752987041679,-460.0,0.0001787,2]
[373401398,1752987041688,-460.0,0.0001787,2]
[373401400,1752987041697,-460.0,0.0001787,2]
[373401402,1752987041707,-460.0,0.0001787,2]
[373401404,1752987041717,-460.0,0.0001787,2]
[373401406,1752987041726,-460.0,0.0001787,2]
[373401408,1752987041735,-460.0,0.0001787,2]
[373401410,1752987041745,-460.0,0.0001787,2]
[373401412,1752987041754,-460.0,0.0001787,2]
[373401414,1752987041763,-460.94674544,0.0001787,2]
[373401416,1752987041772,-460.0,0.0001787,2]
[373401418,1752987041781,-460.0,0.0001787,2]
[373401420,1752987041790,-460.0,0.0001787,2]
[373401422,1752987041801,-460.0,0.0001787,2]
[373401424,1752987041810,-460.0,0.0001787,2]
[373401425,1752987041819,-460.0,0.0001787,2]
[373401427,1752987041829,-460.0,0.0001787,2]
[373401429,1752987041838,-460.0,0.0001787,2]
[373401431,1752987041847,-460.0,0.0001787,2]
[373401433,1752987041856,-460.0,0.0001787,2]
[373401435,1752987041866,-460.0,0.0001787,2]
[373401437,1752987041875,-460.0,0.0001787,2]
[373401439,1752987041884,-460.0,0.0001787,2]
[373401441,1752987041894,-462.39456576,0.0001787,2]
[373401443,1752987041904,-460.0,0.0001787,2]
[373401445,1752987041914,-460.0,0.0001787,2]
[373401447,1752987041923,-460.0,0.0001787,2]
[373401449,1752987041932,-460.0,0.0001787,2]
[373401451,1752987041942,-460.0,0.0001787,2]
[373401453,1752987041952,-460.0,0.0001787,2]
[373401455,1752987041961,-460.0,0.0001787,2]
[373401457,1752987041971,-460.0,0.0001787,2]
[373401459,1752987041980,-460.0,0.0001787,2]
[373401461,1752987041989,-464.10421493,0.0001787,2]
[373401463,1752987041998,-460.0,0.0001787,2]
[373401465,1752987042007,-460.0,0.0001787,2]
[373401467,1752987042016,-460.0,0.0001787,2]
[373401468,1752987042026,-460.0,0.0001787,2]
[373401470,1752987042035,-460.0,0.0001787,2]
[373401472,1752987042044,-460.0,0.0001787,2]
[373401474,1752987042055,-460.0,0.0001787,2]
[373401476,1752987042063,-460.0,0.0001787,2]
[373401478,1752987042073,-460.0,0.0001787,2]
[373401480,1752987042082,-191.01724433,0.0001787,2]
[373401482,1752987042092,-460.0,0.0001787,2]
[373401484,1752987042103,-460.0,0.0001787,2]
[373401486,1752987042113,-460.0,0.0001787,2]
[373401488,1752987042122,-154.39640782,0.0001787,2]
[373401490,1752987042132,-460.0,0.0001787,2]
[373401492,1752987042142,-500.0,0.0001787,2]
[373401494,1752987042151,-460.0,0.0001787,2]
[373401496,1752987042160,-460.0,0.0001787,2]
[373401498,1752987042169,-460.0,0.0001787,2]
[373401500,1752987042181,-460.0,0.0001787,2]
[373401502,1752987042191,-460.0,0.0001787,2]
[373401504,1752987042200,-460.0,0.0001787,2]
[373401506,1752987042210,-460.0,0.0001787,2]
[373401508,1752987042222,-460.0,0.0001787,2]
[373401510,1752987042231,-460.0,0.0001787,2]
[373401512,1752987042241,-464.6107008,0.0001787,2]
[373401514,1752987042251,-460.0,0.0001787,2]
[373401518,1752987042260,-460.0,0.0001787,2]
[373401520,1752987042270,-460.0,0.0001787,2]
[373401523,1752987042279,-460.0,0.0001787,2]
[373401526,1752987042288,-460.0,0.0001787,2]
[373401529,1752987042298,-460.0,0.0001787,2]
[373401532,1752987042308,-460.0,0.0001787,2]
[373401534,1752987042317,-460.0,0.0001787,2]
[373401537,1752987042326,-460.0,0.0001787,2]
[373401539,1752987042335,-460.0,0.0001787,2]
[373401540,1752987042345,-500.0,0.0001787,2]
[373401544,1752987042354,-500.0,0.0001787,2]
[373401546,1752987042364,-460.0,0.0001787,2]
[373401549,1752987042373,-500.0,0.0001787,2]
[373401552,1752987042383,-460.0,0.0001787,2]
[373401555,1752987042392,-460.0,0.0001787,2]
[373401557,1752987042401,-461.03221637,0.0001787,2]
[373401560,1752987042410,-460.0,0.0001787,2]
[373401563,1752987042419,-287.50800003,0.0001787,2]
[373401567,1752987042428,-460.0,0.0001787,2]
[373401570,1752987042437,-460.0,0.0001787,2]
[373401573,1752987042446,-460.0,0.0001787,2]
[373401575,1752987042455,-460.0,0.0001787,2]
[373401577,1752987042464,-460.0,0.0001787,2]
[373401579,1752987042474,-460.0,0.0001787,2]
[373401581,1752987042483,-460.0,0.0001787,2]
[373401583,1752987042492,-460.0,0.0001787,2]
[373401585,1752987042501,-460.0,0.0001787,2]
[373401586,1752987042510,-460.89597521,0.0001787,2]
[373401588,1752987042519,-460.0,0.0001787,2]
[373401589,1752987042528,-460.0,0.0001787,2]
[373401590,1752987042537,-460.0,0.0001787,2]
[373401591,1752987042546,-460.0,0.0001787,2]
[373401592,1752987042556,-460.0,0.0001787,2]
[373401593,1752987042566,-460.0,0.0001787,2]
[373401594,1752987042574,-460.0,0.0001787,2]
[373401595,1752987042583,-460.0,0.0001787,2]
[373401596,1752987042592,-460.0,0.0001787,2]
[373401597,1752987042601,-460.0,0.0001787,2]
[373401598,1752987042610,-475.84164453,0.0001787,2]
[373401599,1752987042619,-460.0,0.0001787,2]
[373401600,1752987042627,-500.0,0.0001787,2]
[373401601,1752987042637,-186.98730942,0.0001787,2]
[373401602,1752987042646,-231.05412282,0.00017871,2]
[373401603,1752987042659,-460.0,0.00017871,2]
[373401604,1752987042668,-508.48455699,0.00017871,2]
[373401605,1752987042677,-460.0,0.00017871,2]
[373401606,1752987042685,-463.40450232,0.00017871,2]
[373401607,1752987042695,-460.0,0.00017871,2]
[373401608,1752987042707,-460.93357906,0.00017871,2]
[373401609,1752987042716,-465.42558319,0.00017871,2]
[373401610,1752987042726,-489.43714189,0.00017871,2]
[373401611,1752987042735,-460.0,0.00017871,2]
[373401612,1752987042744,-460.0,0.00017871,2]
[373401613,1752987042753,-530.21062922,0.00017871,2]
[373401614,1752987042762,-460.0,0.00017871,2]
[373401615,1752987042771,-460.0,0.00017871,2]
[373401617,1752987042781,-500.0,0.00017871,2]
[373401619,1752987042790,-500.0,0.00017871,2]
[373401621,1752987042799,-500.0,0.00017871,2]
[373401623,1752987042808,-460.0,0.00017871,2]
[373401625,1752987042819,-460.0,0.00017871,2]
[373401627,1752987042828,-565.19,0.00017871,2]
[373401629,1752987042837,-1488.94,0.00017871,2]
[373401631,1752987042847,-460.0,0.00017871,2]
[373401633,1752987042856,-468.80909873,0.00017872,2]
[373401635,1752987042865,-460.0,0.00017872,2]
[373401637,1752987042874,-502.99856728,0.00017873,2]
[373401639,1752987042883,-500.0,0.00017873,2]
[373401641,1752987042893,-500.0,0.00017873,2]
[373401643,1752987042902,-500.0,0.00017873,2]
[373401645,1752987042911,-500.0,0.00017873,2]
[373401647,1752987042921,-174.50798011,0.00017873,2]
[373401649,1752987042930,-500.0,0.00017873,2]
[373401651,1752987042939,-500.0,0.00017873,2]
[373401653,1752987042948,-500.0,0.00017873,2]
[373401655,1752987042958,-500.0,0.00017873,2]
[373401657,1752987042967,-506.98494495,0.00017873,2]
[373401659,1752987042977,-500.0,0.00017873,2]
[373401661,1752987042986,-500.0,0.00017873,2]
[373401663,1752987042996,-471.10118897,0.00017873,2]
[373401665,1752987043005,-2298.44316861,0.000179,2]
[373401667,1752987043015,-344.42984732,0.00018023,2]
[373401669,1752987043024,-515.88,0.00018042,2]
[373401671,1752987043033,-683.29,0.00018042,2]
[373401673,1752987043043,-460.0,0.00018043,2]
[373401675,1752987043052,-463.84024398,0.00018043,2]
[373401677,1752987043061,-545.32681895,0.00018043,2]
[373401679,1752987043071,-1203.39,0.00018043,2]
[373401681,1752987043080,-460.0,0.00018043,2]
[373401683,1752987043089,-460.0,0.00018043,2]
[373401685,1752987043099,-460.0,0.00018043,2]
[373401687,1752987043108,-1010.28,0.00018043,2]
[373401689,1752987043117,-460.0,0.00018043,2]
[373401691,1752987043127,-460.0,0.00018043,2]
[373401693,1752987043135,-460.0,0.00018043,2]
[373401695,1752987043148,-2038.2,0.00018043,2]
[373401697,1752987043157,-460.0,0.00018043,2]
[373401699,1752987043167,-460.0,0.00018043,2]
[373401701,1752987043176,-460.0,0.00018043,2]
[373401703,1752987043185,-460.0,0.00018043,2]
[373401705,1752987043194,-219.69665712,0.00018044,2]
[373401707,1752987043203,-460.0,0.00018044,2]
[373401709,1752987043213,-460.0,0.00018044,2]
[373401711,1752987043222,-418.36086938,0.00018044,2]
[373401713,1752987043231,-460.0,0.00018044,2]
[373401715,1752987043240,-460.0,0.00018044,2]
[373401717,1752987043250,-460.0,0.00018044,2]
[373401719,1752987043259,-460.0,0.00018044,2]
[373401721,1752987043268,-460.0,0.00018044,2]
[373401723,1752987043277,-464.92353618,0.00018044,2]
[373401725,1752987043286,-463.25221934,0.00018044,2]
[373401727,1752987043295,-460.0,0.00018044,2]
[373401729,1752987043305,-460.0,0.00018044,2]
[373401731,1752987043315,-507.41,0.00018044,2]
[373401733,1752987043324,-460.0,0.00018044,2]
[373401735,1752987043333,-460.0,0.00018044,2]
[373401737,1752987043342,-460.0,0.00018044,2]
[373401739,1752987043351,-467.37906294,0.00018044,2]
[373401740,1752987043361,-460.0,0.00018044,2]
[373401742,1752987043371,-460.0,0.00018044,2]
[373401744,1752987043380,-460.0,0.00018044,2]
[373401746,1752987043389,-460.0,0.00018044,2]
[373401758,1752987043492,-460.0,0.00018044,2]
[373401760,1752987043502,-460.0,0.00018044,2]
[373401762,1752987043512,-460.0,0.00018044,2]
[373401764,1752987043522,-420.68812044,0.00018044,2]
[373401766,1752987043532,-460.0,0.00018044,2]
[373401768,1752987043545,-460.0,0.00018044,2]
[373401770,1752987043555,-460.0,0.00018044,2]
[373401772,1752987043564,-460.0,0.00018044,2]
[373401774,1752987043574,-460.0,0.00018044,2]
[373401776,1752987043583,-460.0,0.00018044,2]
[373401778,1752987043593,-460.0,0.00018044,2]
[373401780,1752987043602,-460.0,0.00018044,2]
[373401782,1752987043612,-460.0,0.00018044,2]
[373401784,1752987043622,-460.0,0.00018044,2]
[373401786,1752987043631,-481.72,0.00018044,2]
[373401788,1752987043640,-460.0,0.00018044,2]
[373401790,1752987043651,-460.0,0.00018044,2]
[373401792,1752987043663,-460.0,0.00018044,2]
[373401794,1752987043672,-460.0,0.00018044,2]
[373401796,1752987043687,-460.0,0.00018044,2]
[373401798,1752987043703,-460.0,0.00018044,2]
[373401800,1752987043713,-751.53,0.00018044,2]
[373401802,1752987043722,-460.0,0.00018044,2]
[373401804,1752987043731,-460.0,0.00018044,2]
[373401806,1752987043741,-460.0,0.00018044,2]
[373401808,1752987043750,-460.0,0.00018044,2]
[373401810,1752987043759,-460.0,0.00018044,2]
[373401812,1752987043769,-460.0,0.00018044,2]
[373401814,1752987043778,-1399.65,0.00018044,2]
[373401816,1752987043787,-460.0,0.00018044,2]
[373401818,1752987043796,-460.0,0.00018044,2]
[373401820,1752987043806,-460.0,0.00018044,2]
[373401822,1752987043816,-485.82,0.00018044,2]
[373401824,1752987043825,-460.0,0.00018044,2]
[373401826,1752987043834,-460.0,0.00018044,2]
[373401828,1752987043843,-256.04166301,0.00018044,2]
[373401830,1752987043853,-519.21697858,0.00018044,2]
[373401832,1752987043862,-460.0,0.00018044,2]
[373401834,1752987043872,-460.0,0.00018044,2]
[373401836,1752987043881,-741.24,0.00018044,2]
[373401837,1752987043891,-460.0,0.00018144,2]
[373401839,1752987043900,-460.0,0.00018144,2]
[373401841,1752987043910,-460.0,0.00018144,2]
[373401843,1752987043920,-463.18029216,0.00018144,2]
[373401845,1752987043931,-460.0,0.00018144,2]
[373401848,1752987043941,-463.57941893,0.00018144,2]
[373401849,1752987043951,-460.0,0.00018144,2]
[373401851,1752987043960,-467.35119745,0.00018144,2]
[373401853,1752987043970,-460.0,0.00018144,2]
[373401855,1752987043979,-463.55060955,0.00018144,2]
[373401857,1752987043989,-460.0,0.00018144,2]
[373401859,1752987043998,-460.0,0.00018144,2]
[373401861,1752987044007,-464.1003514,0.00018144,2]
[373401863,1752987044017,-460.0,0.00018144,2]
[373401865,1752987044026,-460.0,0.00018144,2]
[373401867,1752987044036,-460.0,0.00018144,2]
[373401869,1752987044045,-460.0,0.00018144,2]
[373401871,1752987044055,-460.0,0.00018144,2]
[373401873,1752987044064,-460.0,0.00018144,2]
[373401875,1752987044074,-460.0,0.00018144,2]
[373401878,1752987044083,-460.0,0.00018144,2]
[373401879,1752987044093,-460.0,0.00018144,2]
[373401882,1752987044102,-460.0,0.00018144,2]
[373401883,1752987044111,-460.0,0.00018144,2]
[373401885,1752987044120,-460.0,0.00018144,2]
[373401887,1752987044129,-460.0,0.00018144,2]
[373401889,1752987044139,-460.0,0.00018144,2]
[373401891,1752987044148,-460.0,0.00018144,2]
[373401893,1752987044158,-460.0,0.00018144,2]
[373401895,1752987044167,-229.63,0.00018144,2]
[373401897,1752987044176,-460.0,0.00018144,2]
[373401899,1752987044185,-460.0,0.00018144,2]
[373401901,1752987044194,-460.0,0.00018144,2]
[373401903,1752987044203,-460.0,0.00018145,2]
[373401905,1752987044212,-460.0,0.00018145,2]
[373401907,1752987044222,-565.19,0.00018145,2]
[373401909,1752987044231,-1488.94,0.00018145,2]
[373401911,1752987044240,-464.26113535,0.00018145,2]
[373401913,1752987044249,-2298.4431684,0.00018176,2]
[373401915,1752987044259,-683.29,0.00018316,2]
[373401917,1752987044268,-460.0,0.00018317,2]
[373401919,1752987044278,-1203.39,0.00018317,2]
[373401921,1752987044287,-269.38908724,0.00018317,2]
[373401923,1752987044297,-460.0,0.00018317,2]
[373401925,1752987044308,-222.19,0.00018317,2]
[373401927,1752987044317,-1010.28,0.00018317,2]
[373401929,1752987044328,-220.14000003,0.00018317,2]
[373401931,1752987044338,-460.0,0.00018317,2]
[373401933,1752987044347,-460.0,0.00018317,2]
[373401935,1752987044356,-2038.2,0.00018317,2]
[373401937,1752987044365,-460.0,0.00018317,2]
[373401939,1752987044375,-460.0,0.00018317,2]
[373401941,1752987044384,-460.0,0.00018317,2]
[373401943,1752987044393,-460.0,0.00018317,2]
[373401945,1752987044402,-460.0,0.00018318,2]
[373401947,1752987044411,-460.0,0.00018318,2]
[373401949,1752987044420,-460.0,0.00018318,2]
[373401951,1752987044429,-460.0,0.00018318,2]
[373401953,1752987044438,-460.0,0.00018318,2]
[373401955,1752987044448,-305.2109046,0.00018318,2]
[373401957,1752987044458,-424.25015195,0.00018318,2]
[373401959,1752987044469,-460.0,0.00018318,2]
[373401961,1752987044478,-460.0,0.00018318,2]
[373401963,1752987044487,-460.0,0.00018318,2]
[373401964,1752987044497,-460.0,0.00018318,2]
[373401966,1752987044506,-460.0,0.00018318,2]
[373401968,1752987044516,-460.0,0.00018318,2]
[373401970,1752987044525,-176.58033247,0.00018318,2]
[373401972,1752987044534,-460.0,0.00018318,2]
[373401974,1752987044545,-460.0,0.00018318,2]
[373401976,1752987044555,-481.72,0.00018318,2]
[373401978,1752987044564,-460.0,0.00018318,2]
[373401980,1752987044573,-460.0,0.00018318,2]
[373401982,1752987044582,-460.0,0.00018318,2]
[373401984,1752987044591,-460.0,0.00018318,2]
[373401986,1752987044602,-460.0,0.00018318,2]
[373401989,1752987044615,-751.53,0.00018318,2]
[373401991,1752987044629,-372.62903208,0.00018318,2]
[373401993,1752987044642,-559.08728347,0.00018318,2]
[373401996,1752987044659,-460.0,0.00018318,2]
[373401998,1752987044672,-460.0,0.00018318,2]
[373402000,1752987044682,-460.0,0.00018318,2]
[373402002,1752987044695,-1399.65,0.00018318,2]
[373402005,1752987044707,-460.0,0.00018318,2]
[373402007,1752987044719,-460.0,0.00018318,2]
[373402009,1752987044732,-460.0,0.00018318,2]
[373402011,1752987044744,-460.0,0.00018318,2]
[373402014,1752987044757,-460.0,0.00018318,2]
[373402016,1752987044769,-460.0,0.00018318,2]
[373402018,1752987044781,-741.24,0.00018318,2]
[373402021,1752987044794,-500.0,0.00018321,2]
[373402023,1752987044806,-599.07,0.00018351,2]
[373402025,1752987044817,-1064.47,0.00018351,2]
[373402028,1752987044830,-460.0,0.00018351,2]
[373402030,1752987044841,-460.0,0.00018351,2]
[373402032,1752987044854,-703.19,0.00018351,2]
[373402034,1752987044866,-461.45629516,0.00018351,2]
[373402037,1752987044880,-778.82,0.00018351,2]
[373402039,1752987044892,-460.0,0.00018351,2]
[373402041,1752987044904,-498.50939823,0.00018418,2]
[373402043,1752987044915,-460.0,0.00018418,2]
[373402046,1752987044925,-461.73,0.00018418,2]
[373402048,1752987044938,-460.0,0.00018418,2]
[373402050,1752987044949,-467.76582936,0.00018418,2]
[373402052,1752987044962,-191.8188262,0.00018418,2]
[373402055,1752987044974,-460.0,0.00018418,2]
[373402057,1752987044987,-460.0,0.00018418,2]
[373402059,1752987044999,-460.0,0.00018418,2]
[373402062,1752987045012,-460.0,0.00018418,2]
[373402064,1752987045025,-460.0,0.00018418,2]
[373402066,1752987045038,-460.0,0.00018418,2]
[373402068,1752987045052,-460.0,0.00018418,2]
[373402069,1752987045062,-460.0,0.00018418,2]
[373402070,1752987045072,-460.0,0.00018418,2]
[373402071,1752987045082,-460.0,0.00018418,2]
[373402072,1752987045092,-460.0,0.00018418,2]
[373402073,1752987045104,-460.0,0.00018418,2]
[373402075,1752987045117,-460.0,0.00018418,2]
[373402077,1752987045129,-565.19,0.00018419,2]
[373402080,1752987045141,-1488.94,0.00018419,2]
[373402082,1752987045151,-500.0,0.00018421,2]
[373402084,1752987045161,-380.68585258,0.00018421,2]
[373402086,1752987045172,-2298.4431684,0.00018452,2]
[373402088,1752987045185,-829.01185327,0.00018567,2]
[373402091,1752987045197,-683.29,0.0001859,2]
[373402093,1752987045208,-498.06,0.00018591,2]
[373402095,1752987045218,-1203.39,0.00018591,2]
[373402097,1752987045230,-460.0,0.00018591,2]
[373402099,1752987045241,-1010.28,0.00018591,2]
[373402102,1752987045251,-460.0,0.00018591,2]
[373402105,1752987045262,-460.0,0.00018591,2]
[373402108,1752987045273,-2038.2,0.00018591,2]
[373402110,1752987045284,-460.0,0.00018591,2]
[373402112,1752987045295,-460.0,0.00018591,2]
[373402114,1752987045308,-460.0,0.00018591,2]
[373402118,1752987045319,-460.0,0.00018591,2]
[373402120,1752987045331,-367.15050101,0.00018592,2]
[373402122,1752987045342,-460.0,0.00018592,2]
[373402124,1752987045354,-460.0,0.00018592,2]
[373402126,1752987045365,-460.0,0.00018592,2]
[373402129,1752987045376,-460.0,0.00018592,2]
[373402131,1752987045388,-567.4,0.00018592,2]
[373402133,1752987045398,-460.0,0.00018592,2]
[373402135,1752987045409,-332.59323963,0.00018592,2]
[373402137,1752987045419,-460.0,0.00018592,2]
[373402141,1752987045431,-460.0,0.00018592,2]
[373402143,1752987045441,-357.14,0.00018592,2]
[373402145,1752987045451,-481.72,0.00018592,2]
[373402147,1752987045462,-460.0,0.00018592,2]
[373402149,1752987045473,-460.0,0.00018592,2]
[373402151,1752987045483,-460.0,0.00018592,2]
[373402154,1752987045494,-460.0,0.00018592,2]
[373402156,1752987045505,-751.53,0.00018592,2]
[373402158,1752987045515,-460.0,0.00018592,2]
[373402160,1752987045526,-460.0,0.00018592,2]
[373402162,1752987045536,-460.0,0.00018592,2]
[373402165,1752987045548,-1399.65,0.00018592,2]
[373402167,1752987045560,-460.0,0.00018592,2]
[373402169,1752987045571,-460.0,0.00018592,2]
[373402171,1752987045582,-460.0,0.00018592,2]
[373402173,1752987045593,-460.0,0.00018592,2]
[373402175,1752987045604,-460.0,0.00018592,2]
[373402178,1752987045614,-460.0,0.00018592,2]
[373402180,1752987045625,-741.24,0.00018592,2]
[373402182,1752987045636,-599.07,0.00018625,2]
[373402184,1752987045646,-1064.47,0.00018625,2]
[373402186,1752987045660,-460.0,0.00018625,2]
[373402188,1752987045671,-703.19,0.00018625,2]
[373402191,1752987045682,-778.82,0.00018625,2]
[373402193,1752987045693,-460.0,0.00018692,2]
[373402195,1752987045703,-460.0,0.00018692,2]
[373402197,1752987045714,-460.0,0.00018692,2]
[373402199,1752987045724,-463.24250931,0.00018692,2]
[373402201,1752987045735,-460.0,0.00018692,2]
[373402203,1752987045746,-460.0,0.00018692,2]
[373402205,1752987045757,-460.0,0.00018692,2]
[373402208,1752987045767,-460.0,0.00018692,2]
[373402210,1752987045778,-460.0,0.00018692,2]
[373402212,1752987045789,-460.0,0.00018692,2]
[373402214,1752987045799,-460.0,0.00018692,2]
[373402216,1752987045811,-1488.94,0.00018693,2]
[373402219,1752987045822,-2298.4431684,0.00018728,2]
[373402221,1752987045833,-683.29,0.00018864,2]
[373402223,1752987045844,-1203.39,0.00018865,2]
[373402225,1752987045855,-460.0,0.00018865,2]
[373402227,1752987045866,-1010.28,0.00018865,2]
[373402230,1752987045878,-460.0,0.00018865,2]
[373402245,1752987045890,-460.0,0.00018865,2]
[373402248,1752987046030,-2038.2,0.00018865,2]
[373402250,1752987046040,-460.0,0.00018865,2]
[373402252,1752987046049,-569.24096322,0.00018865,2]
[373402254,1752987046060,-460.0,0.00018865,2]
[373402256,1752987046069,-373.06,0.00018865,2]
[373402258,1752987046078,-460.0,0.00018866,2]
[373402260,1752987046087,-460.0,0.00018866,2]
[373402262,1752987046097,-460.0,0.00018866,2]
[373402264,1752987046106,-460.0,0.00018866,2]
[373402266,1752987046115,-460.0,0.00018866,2]
[373402268,1752987046124,-481.72,0.00018866,2]
[373402270,1752987046133,-460.0,0.00018866,2]
[373402273,1752987046143,-460.0,0.00018866,2]
[373402275,1752987046151,-460.0,0.00018866,2]
[373402277,1752987046160,-460.0,0.00018866,2]
[373402280,1752987046170,-751.53,0.00018866,2]
[373402282,1752987046179,-460.0,0.00018866,2]
[373402284,1752987046189,-460.0,0.00018866,2]
[373402286,1752987046198,-460.0,0.00018866,2]
[373402288,1752987046207,-1399.65,0.00018866,2]
[373402290,1752987046216,-460.0,0.00018866,2]
[373402292,1752987046225,-460.0,0.00018866,2]
[373402294,1752987046235,-460.0,0.00018866,2]
[373402295,1752987046243,-460.0,0.00018866,2]
[373402298,1752987046252,-218.73657771,0.00018866,2]
[373402300,1752987046261,-460.0,0.00018866,2]
[373402302,1752987046270,-741.24,0.00018866,2]
[373402304,1752987046281,-599.07,0.00018899,2]
[373402306,1752987046290,-1064.47,0.00018899,2]
[373402307,1752987046299,-460.0,0.00018899,2]
[373402310,1752987046311,-703.19,0.00018899,2]
[373402312,1752987046320,-778.82,0.00018899,2]
[373402314,1752987046329,-460.0,0.00018966,2]
[373402316,1752987046338,-460.0,0.00018966,2]
[373402318,1752987046348,-460.0,0.00018966,2]
[373402320,1752987046357,-460.0,0.00018966,2]
[373402322,1752987046367,-460.0,0.00018966,2]
[373402324,1752987046376,-460.0,0.00018966,2]
[373402326,1752987046385,-460.0,0.00018966,2]
[373402328,1752987046395,-1488.94,0.00018967,2]
[373402330,1752987046405,-2298.4431684,0.00019003,2]
[373402332,1752987046414,-1280.22,0.00019131,3]
[373402334,1752987046423,-640.1,0.00019131,3]
[373402336,1752987046432,-320.06,0.00019131,3]
[373402338,1752987046441,-683.29,0.00019138,2]
[373402340,1752987046450,-1203.39,0.00019139,2]
[373402342,1752987046459,-460.0,0.00019139,2]
[373402344,1752987046469,-1010.28,0.00019139,2]
[373402346,1752987046479,-460.0,0.00019139,2]
[373402348,1752987046488,-460.0,0.00019139,2]
[373402350,1752987046497,-2038.2,0.00019139,2]
[373402352,1752987046507,-460.0,0.00019139,2]
[373402354,1752987046516,-460.0,0.00019139,2]
[373402356,1752987046526,-460.0,0.0001914,2]
[373402358,1752987046535,-460.0,0.0001914,2]
[373402360,1752987046544,-460.0,0.0001914,2]
[373402362,1752987046554,-460.0,0.0001914,2]
[373402364,1752987046567,-481.72,0.0001914,2]
[373402366,1752987046577,-460.0,0.0001914,2]
[373402368,1752987046586,-460.0,0.0001914,2]
[373402370,1752987046595,-460.0,0.0001914,2]
[373402372,1752987046604,-460.0,0.0001914,2]